lending/lending_fUSD_20251016
["ID","MTS","AMOUNT","RATE_DAILY","PERIOD"]
[391512617,1760626238965,-500.0,0.00019178,2]
[391512618,1760626238975,-500.0,0.00019178,2]
[391512619,1760626238984,-644.66630853,0.00019178,2]
[391512620,1760626238995,-500.0,0.00019178,2]
[391512621,1760626239005,-500.0,0.00019178,2]
[391512623,1760626239015,-500.0,0.00019178,2]
[391512625,1760626239026,-500.0,0.00019178,2]
[391512627,1760626239036,-500.0,0.00019178,2]
[391512629,1760626239046,-500.0,0.00019178,2]
[391512630,1760626239057,-500.0,0.00019178,2]
[391512632,1760626239067,-500.0,0.00019178,2]
[391512634,1760626239076,-2002.11,0.00019178,2]
[391512635,1760626239086,-331.0,0.00019181,2]
[391512637,1760626239096,-255.0,0.0001922,2]
[391512639,1760626239110,-299.71796243,0.0001923,2]
[391512641,1760626239122,-219.0,0.00019258,2]
[391512643,1760626239132,-485.0,0.00019296,2]
[391512645,1760626239143,-166.66,0.00019303,2]
[391512647,1760626239152,-500.0,0.0001948,2]
[391512649,1760626239163,-500.0,0.00019538,2]
[391512651,1760626239174,-500.0,0.00019538,2]
[391512653,1760626239185,-500.0,0.00019538,2]
[391512655,1760626239196,-500.0,0.00019538,2]
[391512657,1760626239206,-500.0,0.00019538,2]
[391512659,1760626239217,-500.0,0.00019538,2]
[391512661,1760626239227,-500.0,0.00019538,2]
[391512663,1760626239236,-166.66,0.00019678,2]
[391512665,1760626239246,-152.66,0.00019679,2]
[391512667,1760626239256,-370.86310693,0.00019715,2]
[391512669,1760626239267,-500.0,0.00019725,2]
[391512671,1760626239277,-500.0,0.00019862,2]
[391512672,1760626239286,-3737.83,0.00019892,2]
[391512674,1760626239296,-300.0,0.00019919,2]
[391512676,1760626239306,-158.14,0.00020073,2]
[391512678,1760626239316,-3719.24604564,0.00020162,2]
[391512680,1760626239325,-1746.7317632,0.00020164,2]
[391512682,1760626239334,-2310.4125697,0.00020164,2]
[391512684,1760626239344,-297.3258416,0.00020164,2]
[391512686,1760626239356,-150.0,0.00020164,2]
[391512688,1760626239366,-150.0,0.00020164,2]
[391512690,1760626239375,-150.0,0.00020164,2]
[391512692,1760626239384,-500.0,0.00020164,2]
[391512694,1760626239394,-500.0,0.00020164,2]
[391512696,1760626239404,-150.0,0.00020164,2]
[391512698,1760626239414,-156.21851696,0.00020164,2]
[391512700,1760626239424,-150.0,0.00020164,2]
[391512702,1760626239434,-150.0,0.00020164,2]
[391512704,1760626239444,-150.0,0.00020164,2]
[391512706,1760626239455,-666.0,0.00020173,3]
[391512708,1760626239465,-150.0,0.00020219,2]
[391512710,1760626239475,-150.0,0.00020219,2]
[391512712,1760626239486,-500.0,0.00020219,2]
[391512714,1760626239498,-500.0,0.00020219,2]
[391512716,1760626239508,-150.0,0.00020219,2]
[391512718,1760626239518,-151.30290551,0.00020219,2]
[391512720,1760626239529,-500.0,0.00020257,2]
[391512722,1760626239539,-500.0,0.00020257,2]
[391512724,1760626239548,-500.0,0.00020257,2]
[391512726,1760626239558,-500.0,0.00020257,2]
[391512727,1760626239568,-500.0,0.00020257,2]
[391512729,1760626239577,-410.01268101,0.00020257,2]
[391512731,1760626239587,-310.24812383,0.00020257,2]
[391512733,1760626239596,-500.0,0.00020257,2]
[391512735,1760626239609,-500.0,0.00020257,2]
[391512737,1760626239619,-500.0,0.00020257,2]
[391512739,1760626239628,-500.0,0.00020257,2]
[391512741,1760626239637,-500.0,0.00020257,2]
[391512743,1760626239647,-151.55,0.00020258,2]
[391512745,1760626239656,-300.41,0.00020258,2]
[391512747,1760626239666,-44503.34,0.00020258,2]
[391512749,1760626239677,-1609.797,0.00020262,2]
[391512751,1760626239686,-150.0,0.00020274,2]
[391512785,1760626240013,-150.0,0.00020274,2]
[391512787,1760626240023,-500.0,0.00020274,2]
[391512789,1760626240033,-500.0,0.00020274,2]
[391512792,1760626240043,-150.0,0.00020274,2]
[391512794,1760626240052,-150.0,0.00020274,2]
[391512796,1760626240061,-2000.0,0.000203,2]
[391512798,1760626240072,-250.0,0.00020328,2]
[391512800,1760626240081,-150.0,0.00020328,2]
[391512802,1760626240091,-500.0,0.00020328,2]
[391512804,1760626240101,-500.0,0.00020328,2]
[391512806,1760626240114,-150.0,0.00020328,2]
[391512808,1760626240123,-304.63,0.00020359,2]
[391512810,1760626240133,-17344.18340682,0.0002036,2]
[391512812,1760626240147,-6433.78690289,0.0002036,2]
[391512814,1760626240157,-200.0,0.0002036,2]
[391512816,1760626240166,-200.0,0.0002036,2]
[391512818,1760626240176,-200.0,0.0002036,2]
[391512820,1760626240186,-152.13,0.0002036,2]
[391512822,1760626240195,-151.9,0.0002036,2]
[391512824,1760626240205,-300.56,0.0002036,2]
[391512826,1760626240214,-152.27,0.0002036,2]
[391512828,1760626240224,-151.89,0.0002036,2]
[391512830,1760626240233,-151.73,0.0002036,2]
[391512832,1760626240244,-300.5,0.0002036,2]
[391512834,1760626240254,-150.68,0.0002036,2]
[391512836,1760626240264,-151.84,0.0002036,2]
[391512837,1760626240274,-151.67,0.0002036,2]
[391512839,1760626240283,-152.92,0.0002036,2]
[391512841,1760626240293,-250.0,0.00020383,2]
[391512843,1760626240303,-500.0,0.00020383,2]
[391512845,1760626240313,-557.34975452,0.00020383,2]
[391512847,1760626240325,-150.0,0.00020383,2]
[391512849,1760626240335,-333.99369175,0.00020438,2]
[391512851,1760626240345,-372.1435,0.00020456,2]
[391512853,1760626240358,-813.02,0.00020504,2]
[391512855,1760626240367,-500.0,0.00020535,2]
[391512857,1760626240378,-302.11,0.00020556,2]
[391512859,1760626240387,-151.32,0.00020556,2]
[391512861,1760626240397,-5000.21333452,0.00020556,2]
[391512863,1760626240406,-1786.31749,0.00020556,2]
[391512865,1760626240415,-168.0,0.00020696,2]
[391512867,1760626240425,-1605.0,0.000207,2]
[391512869,1760626240435,-168.0,0.00020708,2]
[391512871,1760626240444,-168.0,0.00020749,2]
[391512873,1760626240454,-814.85773492,0.0002075,2]
[391512878,1760626240493,-971.45976508,0.0002075,2]
[391512880,1760626240503,-4000.0,0.00020754,2]
[391512882,1760626240512,-150.39,0.0002081,2]
[391512884,1760626240521,-150.42,0.0002081,2]
[391512886,1760626240530,-152.82,0.0002081,2]
[391512888,1760626240540,-302.06,0.0002081,2]
[391512890,1760626240550,-500.0,0.00020819,2]
[391512892,1760626240559,-500.0,0.00020819,2]
[391512894,1760626240570,-500.0,0.00020819,2]
[391512896,1760626240579,-500.0,0.00020819,2]
[391512898,1760626240589,-546.64,0.0002082,2]
[391512900,1760626240597,-546.64,0.0002082,2]
[391512902,1760626240609,-500.0,0.0002082,2]
[391512904,1760626240618,-500.0,0.0002082,2]
[391512906,1760626240627,-500.0,0.0002082,2]
[391512908,1760626240637,-500.0,0.0002082,2]
[391512910,1760626240646,-299.45000116,0.0002085,2]
[391512912,1760626240655,-1600.0,0.00020959,2]
[391512914,1760626240665,-703.57,0.00021041,2]
[391512916,1760626240675,-168.0,0.00021042,2]
[391512918,1760626240684,-200.0,0.00021067,2]
[391512920,1760626240694,-3719.2460456,0.00021077,2]
[391512922,1760626240703,-546.64,0.00021094,2]
[391512924,1760626240712,-546.64,0.00021094,2]
[391512926,1760626240721,-361.25137617,0.00021094,2]
[391512928,1760626240731,-158.14,0.00021188,2]
[391512930,1760626240740,-174.60398629,0.0002125,2]
[391512932,1760626240752,-1611.71351371,0.0002125,2]
[391512934,1760626240761,-168.0,0.00021256,2]
[391512936,1760626240771,-816.91425886,0.00021259,2]
[391512938,1760626240781,-300.0,0.00021288,2]
[391512940,1760626240790,-168.0,0.00021339,2]
[391512942,1760626240800,-546.64,0.00021368,2]
[391512944,1760626240809,-546.64,0.00021368,2]
[391512946,1760626240818,-7119.98077135,0.00021388,2]
[391512948,1760626240830,-1320.08871658,0.00021388,2]
[391512950,1760626240839,-12360.12519908,0.000215,2]
[391512952,1760626240851,-1323.27193708,0.000215,2]
[391512954,1760626240864,-754.56966197,0.000215,2]
[391512957,1760626240875,-1422.41859326,0.000215,2]
[391512959,1760626240886,-19443.99690734,0.000215,2]
[391512979,1760626241176,-1124.961432,0.000215,2]
[391512981,1760626241188,-7358.77460278,0.000215,2]
[391512983,1760626241198,-219.28690217,0.000215,2]
[391512985,1760626241207,-168.0,0.00021569,2]
[391512987,1760626241217,-546.64,0.00021642,2]
[391512990,1760626241227,-150.0,0.00021674,4]
[391512991,1760626241236,-150.0,0.00021674,4]
[391512993,1760626241246,-150.0,0.00021674,4]
[391512995,1760626241255,-476.70659007,0.000217,2]
[391512997,1760626241264,-168.0,0.00021711,2]
[391512999,1760626241274,-200.0,0.00021741,2]
[391513002,1760626241285,-1786.3175,0.0002175,2]
[391513003,1760626241295,-500.0,0.00021816,2]
[391513005,1760626241304,-500.27279512,0.00021816,2]
[391513008,1760626241315,-151.95177887,0.00021816,2]
[391513009,1760626241324,-500.0,0.00021816,2]
[391513011,1760626241333,-500.0,0.00021816,2]
[391513013,1760626241343,-500.0,0.00021816,2]
[391513015,1760626241353,-500.0,0.00021816,2]
[391513017,1760626241363,-500.0,0.00021816,2]
[391513019,1760626241372,-500.0,0.00021816,2]
[391513021,1760626241382,-500.0,0.00021816,2]
[391513023,1760626241392,-500.0,0.00021816,2]
[391513025,1760626241401,-500.0,0.00021816,2]
[391513027,1760626241410,-500.0,0.00021816,2]
[391513029,1760626241420,-151.46473701,0.00021816,2]
[391513031,1760626241433,-348.53526299,0.00021816,2]
[391513033,1760626241443,-500.0,0.00021816,2]
[391513035,1760626241452,-500.0,0.00021816,2]
[391513037,1760626241462,-500.0,0.00021816,2]
[391513039,1760626241471,-500.0,0.00021816,2]
[391513041,1760626241483,-518.72,0.00021816,2]
[391513043,1760626241493,-173.03302709,0.00021816,2]
[391513045,1760626241505,-326.96697291,0.00021816,2]
[391513047,1760626241514,-556.8,0.00021817,2]
[391513049,1760626241524,-154.72179606,0.00021817,2]
[391513051,1760626241535,-163.9715362,0.00021899,2]
[391513053,1760626241544,-2563.83681622,0.000219,2]
[391513055,1760626241556,-1942.9070334,0.000219,2]
[391513057,1760626241572,-493.25615038,0.000219,2]
[391513060,1760626241583,-151.0,0.00021914,2]
[391513062,1760626241593,-546.64,0.00021916,2]
[391513063,1760626241603,-546.64,0.00021916,2]
[391513066,1760626241613,-500.0,0.00021916,2]
[391513068,1760626241623,-500.0,0.00021916,2]
[391513070,1760626241632,-500.0,0.00021916,2]
[391513072,1760626241641,-500.0,0.00021916,2]
[391513074,1760626241651,-500.0,0.00021916,2]
[391513076,1760626241660,-500.0,0.00021916,2]
[391513078,1760626241669,-5147.63720481,0.00021916,2]
[391513080,1760626241681,-9099.71664481,0.00021916,2]
[391513082,1760626241693,-7067.73446767,0.00021916,2]
[391513084,1760626241704,-1816.03755825,0.00021916,2]
[391513089,1760626241743,-17234.72715856,0.00021916,2]
[391513092,1760626241757,-964.66088139,0.00021916,2]
[391513094,1760626241768,-9960.3,0.00021916,2]
[391513247,1760626243317,-313.62008107,0.00019892,2]
[391513249,1760626243329,-2232.37991893,0.00019892,2]
[391513251,1760626243339,-168.0,0.00021513,2]
[391513253,1760626243348,-995.62008107,0.00021916,2]
[391513256,1760626243362,-261684.47617717,0.00021916,2]
[391513258,1760626243374,-7795.60850713,0.00021916,2]
[391513261,1760626243398,-905.0240924,0.00021916,2]
[391513267,1760626243439,-5565.5,0.00021916,2]
[391513291,1760626243665,-572.3413305,0.00021916,2]
[391513550,1760626246252,-1565.69421743,0.00021916,2]
[391513562,1760626246397,-20231.29091795,0.00021916,2]
[391513564,1760626246408,-22201.22080085,0.00021916,2]
[391513567,1760626246420,-270.61290868,0.00021916,2]
[391516680,1760626316740,500.0,0.00027397,120]
[391516681,1760626326408,500.0,0.00027397,120]
[391516683,1760626328201,500.0,0.00027397,120]
[391516686,1760626337583,220.0,0.00027397,120]
[391516687,1760626342020,500.0,0.00027397,120]
[391516688,1760626346831,500.0,0.00027397,120]
[391516689,1760626349799,500.0,0.00027397,120]
[391517474,1760626706677,18114.99,0.00013352,2]
[391517475,1760626721125,-303.21196802,0.00013351,2]
[391517476,1760626725457,-196.78803198,0.00013351,2]
[391517477,1760626725483,-126.20000032,0.00013351,2]
[391517478,1760626728030,-243.25428805,0.00013351,2]
[391517479,1760626732137,-130.54571163,0.00013351,2]
[391517480,1760626732163,-21.75428837,0.00013351,2]
[391517481,1760626735387,-166.66,0.00013351,2]
[391517482,1760626751150,-292.07579649,0.00013091,2]
[391517483,1760626753206,-228.5854843,0.00013091,2]
[391517484,1760626757305,-332.7721079,0.00013091,2]
[391517485,1760626760597,-350.32876773,0.00013091,2]
[391517486,1760626764402,-183.71229,0.00013091,2]
[391517487,1760626781643,-183.20918751,0.00013091,2]
[391517488,1760626783196,-406.094376,0.00013091,2]
[391517489,1760626784735,-323.64480172,0.00013091,2]
[391517490,1760626788857,-189.10798735,0.00013091,2]
[391517491,1760626790167,-551.00499461,0.00013091,2]
[391517492,1760626790609,679.40825833,0.00013077,2]
[391517493,1760626801907,300.0,0.0001309,2]
[391517494,1760626801945,300.0,0.0001309,2]
[391517495,1760626801984,1200.0,0.0001309,2]
[391517496,1760626802272,150.0,0.0001309,2]
[391517497,1760626803316,-333.6796845,0.00013091,2]
[391517500,1760626808197,-500.0,0.00013091,2]
[391517501,1760626809224,2000.0,0.00027397,120]
[391517502,1760626815107,2000.0,0.00027397,120]
[391517503,1760626826117,-298.0050657,0.00013091,2]
[391517504,1760626827784,2000.0,0.00027397,120]
[391517505,1760626828455,-258.2595874,0.00013091,2]
[391517506,1760626831156,-166.66,0.00013091,2]
[391517507,1760626834799,2000.0,0.00027397,120]
[391517508,1760626836565,-264.83424814,0.00013091,2]
[391517509,1760626839843,-158.6219773,0.00013091,2]
[391517510,1760626843364,500.0,0.0001309,2]
[391517511,1760626843449,500.0,0.0001309,2]
[391517512,1760626843513,500.0,0.0001309,2]
[391517513,1760626843553,500.0,0.0001309,2]
[391517514,1760626843595,500.0,0.0001309,2]
[391517515,1760626843639,329.47836037,0.0001309,2]
[391517516,1760626845181,1010.0,0.00027397,120]
[391517517,1760626845314,-157.87233395,0.0001309,2]
[391517518,1760626846616,2205.11329,0.00013025,2]
[391517519,1760626846773,-12.64930568,0.0001309,2]
[391517520,1760626846800,-219.85421918,0.0001309,2]
[391517521,1760626846826,-140.89465847,0.0001309,2]
[391517522,1760626848774,-294.86113518,0.0001309,2]
[391517523,1760626852132,-64.24420635,0.0001309,2]
[391517524,1760626852158,-258.24329628,0.0001309,2]
[391517525,1760626852359,1000.0,0.00027397,120]
[391517526,1760626854267,-241.75670372,0.0001309,2]
[391517527,1760626854292,-70.1194956,0.0001309,2]
[391517528,1760626855304,-188.12379968,0.0001309,2]
[391517529,1760626867008,826.131652,0.00013024,2]
[391517530,1760626867834,-241.75670472,0.0001309,2]
[391517531,1760626867862,-91.58329528,0.0001309,2]
[391517532,1760626871002,-166.66,0.0001309,2]
[391517533,1760626873064,-241.75670472,0.0001309,2]
[391517534,1760626873091,-7.80066342,0.0001309,2]
[391517536,1760626877963,-324.89690142,0.0001309,2]
[391517537,1760626879697,-167.30243516,0.0001309,2]
[391517538,1760626879724,-111.28484392,0.0001309,2]
[391517539,1760626881020,2427.6416767,0.00013,2]
[391517540,1760626881043,5458.8866187,0.00013,2]
[391517541,1760626881066,5458.8866187,0.00013,2]
[391517542,1760626881091,5458.8866187,0.00013,2]
[391517543,1760626881115,5458.8866187,0.00013,2]
[391517544,1760626881138,5458.8866187,0.00013,2]
[391517545,1760626881165,5458.8866187,0.00013,2]
[391517546,1760626881195,5458.8866187,0.00013,2]
[391517547,1760626881220,5458.8866187,0.00013,2]
[391517548,1760626881250,83351.49879034,0.00013,2]
[391517549,1760626881279,84092.62879053,0.00013,2]
[391517550,1760626884587,-168.40153145,0.00013,2]
[391517551,1760626901647,-250.0,0.00013,2]
[391517552,1760626903136,-250.0,0.00013,2]
[391517553,1760626905540,-221.00985748,0.00013,2]
[391517554,1760626906190,-350.23,0.00013,2]
[391517555,1760626906872,-166.66,0.00013,2]
[391517556,1760626907493,-361.44339744,0.00013,2]
[391517557,1760626908561,-197.12372833,0.00013,2]
[391517558,1760626910490,-300.0,0.00013,2]
[391517559,1760626912660,-166.66,0.00013,2]
[391517560,1760626931103,-254.94928461,0.00013,2]
[391517562,1760626935691,-245.05071539,0.00013,2]
[391517563,1760626937137,-157.91309406,0.00013,2]
[391517564,1760626940627,-247.61503893,0.00013,2]
[391517565,1760626943194,-325.28575186,0.00013,2]
[391517566,1760626945139,-536.81190285,0.00013,2]
[391517567,1760626950869,-307.20622567,0.00012999,2]
[391517568,1760626952405,-180.73240811,0.00012935,2]
[391517569,1760626954324,-277.35679052,0.00012935,2]
[391517570,1760626956785,-215.73016137,0.00012935,2]
[391517571,1760626956807,-153.58810001,0.00012999,2]
[391517572,1760626958611,-412.90087671,0.00012999,2]
[391517573,1760626960045,-326.30479761,0.00012999,2]
[391517574,1760626960071,-24.29257953,0.00012999,2]
[391517575,1760626976146,-241.39494732,0.00012999,2]
[391517576,1760626978218,-234.31247315,0.00012999,2]
[391517577,1760626978253,-149.63786978,0.00012999,2]
[391517578,1760626982488,-430.17219954,0.00012999,2]
[391517579,1760626982516,-13.80076057,0.00013,2]
[391517581,1760626985131,-457.85196249,0.00013,2]
[391517582,1760626989411,-300.0,0.00013,2]
[391517583,1760627006173,-351.69712708,0.00013,2]
[391517584,1760627008658,-360.656192,0.00013,2]
[391517585,1760627012847,-197.85124363,0.00012991,2]
[391517586,1760627015677,-23.08617546,0.00012991,2]
[391517587,1760627015715,-185.70382454,0.00013,2]
[391517588,1760627017597,-480.0,0.00013,2]
[391517589,1760627020966,-235.06599117,0.00013,2]
[391517590,1760627022493,-219.30693218,0.00013,2]
[391517591,1760627024602,-447.38477188,0.00013,2]
[391517592,1760627028933,-298.91765228,0.00013,2]
[391517593,1760627031445,-287.36383584,0.00013,2]
[391517594,1760627032596,-195.00907424,0.00013,2]
[391517595,1760627050994,743.8992852,0.000273,120]
[391517596,1760627051236,-161.13120818,0.00013,2]
[391517597,1760627053966,-310.22959107,0.00013,2]
[391517598,1760627056665,-290.12902328,0.00013,2]
[391517599,1760627061036,-249.33647055,0.00013,2]
[391517603,1760627065181,-164.4,0.00013,2]
[391517604,1760627081096,-204.5,0.00013,2]
[391517605,1760627084905,-206.12852006,0.00013,2]
[391517606,1760627086767,-220.90292361,0.00013,2]
[391517607,1760627089089,-296.5598521,0.00013,2]
[391517608,1760627093017,-166.66,0.00013,2]
[391517609,1760627096203,-301.67714213,0.00013,2]
[391517610,1760627100873,-224.0474455,0.00013,2]
[391517611,1760627102930,-300.0,0.00012999,2]
[391517612,1760627104423,-250.66650259,0.00012999,2]
[391517613,1760627109269,-49.33349741,0.00012999,2]
[391517614,1760627109293,-238.96937551,0.00013,2]
[391517615,1760627126148,-240.97038691,0.00013,2]
[391517616,1760627133231,-300.76667589,0.00013,2]
[391517618,1760627135797,-164.0,0.00013,2]
[391517619,1760627137311,-256.97513188,0.00013,2]
[391517620,1760627156138,-390.40681569,0.00013,2]
[391517621,1760627157645,-158.69671284,0.00013,2]
[391517622,1760627159833,-294.41032499,0.00013,2]
[391517623,1760627161992,-399.37,0.00013,2]
[391517624,1760627165881,-167.60418897,0.00013,2]
[391517625,1760627169991,-215.4245165,0.00013,2]
[391517626,1760627184829,869.1773448,0.00027397,120]
[391517627,1760627187274,-218.51371194,0.00013,2]
[391517628,1760627189423,-193.49040346,0.00013,2]
[391517629,1760627190975,-280.24649315,0.00013,2]
[391517630,1760627192515,-306.46578607,0.00013,2]
[391517638,1760627193969,-227.50934178,0.00013,2]
[391517675,1760627197860,-180.33112792,0.00013,2]
[391517696,1760627199838,-283.91327745,0.00013,2]
[391517849,1760627216106,-277.57834291,0.00013,2]
[391517897,1760627220568,-311.05,0.00013,2]
[391517930,1760627224288,-345.0,0.00013,2]
[391517931,1760627225714,-231.56564716,0.00013,2]
[391517932,1760627229210,-288.79120476,0.00013,2]
[391517933,1760627246293,-285.96282001,0.00013,2]
[391517934,1760627249281,-183.67138701,0.00013,2]
[391517938,1760627254040,-300.0,0.00013,2]
[391517939,1760627255459,-300.0,0.00013,2]
[391517940,1760627276133,-344.03715681,0.00013,2]
[391517941,1760627277793,-300.0,0.00013,2]
[391517942,1760627279231,-178.56978606,0.00013,2]
[391517943,1760627281694,-300.0,0.00012999,2]
[391517944,1760627281719,-123.18281254,0.00013,2]
[391517945,1760627284623,-500.0,0.00013,2]
[391517946,1760627286392,-303.9168245,0.00013,2]
[391517947,1760627287981,-268.35715914,0.00013,2]
[391517948,1760627306124,-440.59301344,0.00013,2]
[391517949,1760627309560,-207.23879318,0.00013,2]
[391517950,1760627310690,-258.20972871,0.00013,2]
[391517951,1760627317603,-221.75770419,0.00013,2]
[391517952,1760627321137,-204.95947662,0.00013,2]
[391517953,1760627323159,-205.48798767,0.00013,2]
[391517954,1760627325059,-184.95604077,0.00013,2]
[391517955,1760627326500,-171.46007785,0.00013,2]
[391517956,1760627329826,-203.5260081,0.00013,2]
[391517957,1760627332523,-265.50166498,0.00013,2]
[391517958,1760627334532,-432.18480056,0.00013,2]
[391517959,1760627352057,-232.39775371,0.00013,2]
[391517960,1760627356360,-164.39374266,0.00013,2]
[391517961,1760627358287,-254.29385397,0.00013,2]
[391517962,1760627360262,-226.05562376,0.00013,2]
[391517964,1760627361973,-382.71407976,0.00013,2]
[391517965,1760627364388,-280.51535638,0.00013,2]
[391517967,1760627365669,-291.59,0.00013,2]
[391517968,1760627368280,-683.4498109,0.00013,2]
[391517969,1760627372406,-420.68075296,0.00013,2]
[391517970,1760627375878,-250.0,0.00013,2]
[391517972,1760627382769,-270.82392731,0.00013,2]
[391517973,1760627387599,-262.83656661,0.00013,2]
[391517975,1760627389170,-376.39664348,0.00013,2]
[391517976,1760627390654,-195.06813115,0.00013,2]
[391517977,1760627392118,-190.21738323,0.00013,2]
[391517978,1760627394224,-451.23899798,0.00013,2]
[391517981,1760627412153,-193.70625838,0.00012991,2]
[391517982,1760627412179,-442.58636448,0.00013,2]
[391517983,1760627414661,-304.43393434,0.00013,2]
[391517984,1760627416553,-330.48340147,0.00013,2]
[391517985,1760627417981,-228.36034156,0.00013,2]
[391517986,1760627419948,-224.44009699,0.00013,2]
[391517987,1760627422441,-298.10736603,0.00013,2]
[391517988,1760627423961,-218.61143519,0.00013,2]
[391517990,1760627426352,-158.20263632,0.00013,2]
[391517991,1760627428321,1000.0,0.00012753,2]
[391517992,1760627428572,1000.0,0.00012753,2]
[391517993,1760627429313,-192.79377433,0.00013,2]
[391517994,1760627429353,1097.01109,0.00012753,2]
[391517995,1760627431401,-250.0,0.00013,2]
[391518040,1760627433193,-701.61386136,0.00013,2]
[391518042,1760627433206,-56189.77897405,0.00013,2]
[391518044,1760627433218,-346.06452363,0.00013,2]
[391518046,1760627433230,-43951.3747915,0.00013,2]
[391518048,1760627433240,-301.00499461,0.00013046,2]
[391518050,1760627433252,-151.0,0.00013091,2]
[391518052,1760627433261,-203.34762041,0.00013146,2]
[391518054,1760627433270,-201.65049896,0.00013146,2]
[391518056,1760627433280,-281.4888577,0.00013146,2]
[391518058,1760627433289,-151.0,0.00013146,2]
[391518061,1760627433299,-151.0,0.00013146,2]
[391518062,1760627433308,-151.0,0.00013146,2]
[391518064,1760627433318,-151.0,0.00013146,2]
[391518066,1760627433328,-151.0,0.00013146,2]
[391518068,1760627433337,-179.01056085,0.00013146,2]
[391518070,1760627433346,-500.0,0.00013433,2]
[391518072,1760627433356,-500.0,0.00013433,2]
[391518074,1760627433366,-516.59,0.00013699,2]
[391518076,1760627433377,-500.0,0.0001424,2]
[391518078,1760627433387,-300.0,0.000143,2]
[391518080,1760627433396,-300.0,0.000143,2]
[391518082,1760627433406,-248.30841285,0.000143,2]
[391518084,1760627433416,-250.0,0.000143,2]
[391518086,1760627433426,-250.0,0.000143,2]
[391518088,1760627433435,-209.6631161,0.00017852,2]
[391518090,1760627433445,-6166.56114702,0.00017852,2]
[391518092,1760627433457,-3833.42885298,0.00017852,2]
[391518094,1760627433467,-2635.21566551,0.00017852,2]
[391518097,1760627433479,-6864.12433449,0.00017852,2]
[391518099,1760627433489,-150.99,0.00017852,2]
[391518101,1760627433499,-9999.99,0.00017852,2]
[391518103,1760627433508,-753.0,0.00018978,2]
[391518105,1760627433518,-3843.73110587,0.00019092,2]
[391518107,1760627433528,-379.0,0.00019192,2]
[391518109,1760627433538,-310.0,0.00019329,2]
[391518111,1760627433547,-485.0,0.00019346,2]
[391518113,1760627433556,-434.0,0.00019349,2]
[391518115,1760627433566,-322.6107,0.00019376,2]
[391518117,1760627433575,-250.0,0.00019376,2]
[391518119,1760627433585,-250.0,0.00019376,2]
[391518121,1760627433595,-1000.0,0.00019376,2]
[391518123,1760627433604,-1000.0,0.00019376,2]
[391518125,1760627433613,-151.0,0.00019376,2]
[391518127,1760627433624,-1291.0,0.00019384,2]
[391518129,1760627433634,-250.0,0.0001957,2]
[391518131,1760627433643,-1172.64654408,0.00019639,5]
[391518133,1760627433653,-500.0,0.0001964,2]
[391518135,1760627433662,-2546.0,0.00019693,2]
[391518137,1760627433671,-34504.14,0.00019726,2]
[391518139,1760627433681,-250.0,0.00019771,7]
[391518141,1760627433690,-168.32,0.0001999,2]
[391518143,1760627433701,-370.11858813,0.0001999,2]
[391518145,1760627433710,-151.0,0.00019997,2]
[391518147,1760627433719,-2000.0,0.0002,2]
[391518149,1760627433728,-40212.72533276,0.0002,2]
[391518151,1760627433741,-33174.2097292,0.0002,2]
[391518153,1760627433751,-552.23,0.00020042,2]